bitfinex/quotes_BTCUSD_20220202
["timestamp","ask_amount","ask_price","bid_price","bid_amount"]
[1643821207518,1.19687011,37342.0,37338.0,0.066979]
[1643821207719,0.02798191,37341.0,37338.0,0.066979]
[1643821207918,0.80312,37340.0,37338.0,0.066979]
[1643821208358,0.05,37339.0,37338.0,0.066979]
[1643821209164,0.80312,37340.0,37338.0,0.066979]
[1643821209364,0.80312,37340.0,37339.0,0.61623702]
[1643821209561,0.80312,37340.0,37339.0,0.23247404]
[1643821210160,0.80312,37340.0,37339.0,1.28082913]
[1643821210360,0.80312,37340.0,37339.0,1.28487239]
[1643821210961,0.80761572,37340.0,37339.0,1.28487239]
[1643821211362,0.80761572,37340.0,37339.0,0.58487239]
[1643821211561,0.80761572,37340.0,37339.0,0.29943804]
[1643821211970,0.80761572,37340.0,37339.0,0.68913154]
[1643821212217,0.40594655,37340.0,37339.0,2.23913154]
[1643821212413,0.40594655,37340.0,37339.0,2.43913154]
[1643821212615,0.00425755,37340.0,37339.0,2.23913154]
[1643821212814,0.00016965,37344.0,37339.0,2.23913154]
[1643821213017,0.00016965,37344.0,37343.0,1.74746783]
[1643821213217,0.00016965,37344.0,37343.0,1.91801883]
[1643821213816,0.0001,37354.0,37344.0,7e-05]
[1643821214018,0.0001,37354.0,37346.0,0.2]
[1643821214218,0.0001,37354.0,37348.0,0.066926]
[1643821214418,0.00041337,37355.0,37350.0,0.57940137]
[1643821214623,0.00041337,37355.0,37352.0,0.11623702]
[1643821214819,0.00018095,37361.0,37353.0,0.34733135]
[1643821215018,0.01878784,37360.0,37353.0,0.0536]
[1643821215218,0.00041347,37355.0,37353.0,0.0536]
[1643821215619,0.00041347,37355.0,37354.0,0.066931]
[1643821215865,0.00041347,37355.0,37352.0,0.36633504]
[1643821216059,0.01878784,37360.0,37352.0,0.36633504]
[1643821216260,0.00425755,37354.0,37352.0,0.36633504]
[1643821216460,0.0005644,37356.0,37352.0,0.36633504]
[1643821217360,0.2531462,37360.0,37352.0,0.36633504]
[1643821217561,0.00057282,37356.0,37352.0,0.36633504]
[1643821217760,0.01881227,37356.0,37352.0,0.36633504]
[1643821217961,0.01455472,37356.0,37352.0,0.36633504]
[1643821218161,0.01455472,37356.0,37353.0,0.25035053]
[1643821218461,0.0139819,37356.0,37352.0,0.36633504]
[1643821218663,0.26038096,37354.0,37352.0,0.36633504]
[1643821218863,0.31038096,37354.0,37352.0,0.36633504]
[1643821219163,0.00425755,37353.0,37352.0,0.36633504]
[1643821220911,1.30425755,37353.0,37352.0,0.23247404]
[1643821221311,1.35425755,37353.0,37352.0,0.23247404]
[1643821221517,1.35425755,37353.0,37352.0,0.15583582]
[1643821221518,2.15741755,37353.0,37352.0,0.15583582]
[1643821221712,2.25174207,37353.0,37352.0,0.11623702]
[1643821221914,2.25174207,37353.0,37352.0,0.15583582]
[1643821222513,2.15741755,37353.0,37352.0,0.15583582]
[1643821223558,0.85741755,37353.0,37352.0,0.15583582]
[1643821223758,1.11470325,37353.0,37352.0,0.15583582]
[1643821224567,0.85741755,37353.0,37352.0,0.15583582]
[1643821224760,1.12680767,37353.0,37352.0,0.15583582]
[1643821225561,1.15,37352.0,37350.0,0.00050402]
[1643821225763,0.28923816,37351.0,37343.0,0.133926]
[1643821225960,1.73923816,37351.0,37350.0,0.00050402]
[1643821226162,2.14327016,37351.0,37350.0,0.00050402]
[1643821226961,2.14327016,37351.0,37343.0,0.133926]
[1643821227208,0.27575444,37346.0,37343.0,0.133926]
[1643821227412,2.59239816,37351.0,37343.0,0.133926]
[1643821227613,0.00425755,37344.0,37343.0,0.133926]
[1643821227809,0.24708968,37349.0,37343.0,0.133926]
[1643821228010,0.05,37348.0,37343.0,0.133926]
[1643821228411,0.25886307,37344.0,37343.0,0.133926]
[1643821228711,0.30886307,37344.0,37343.0,0.133926]
[1643821228911,0.30886307,37344.0,37342.0,0.00046311]
[1643821229112,1.67623387,37343.0,37342.0,0.00046311]
[1643821229310,1.67623387,37343.0,37332.0,0.3698]
[1643821229512,1.77162607,37343.0,37333.0,0.00010379]
[1643821229710,0.28275396,37342.0,37341.0,0.00046312]
[1643821230011,1.72666108,37342.0,37341.0,0.00046312]
[1643821230212,2.52982108,37342.0,37341.0,0.00046312]
[1643821230408,2.5578052,37342.0,37341.0,0.00046312]
[1643821230609,2.5578052,37342.0,37337.0,0.00010379]
[1643821230610,2.56206275,37342.0,37337.0,0.00010379]
[1643821230860,2.2037732,37342.0,37340.0,0.00046314]
[1643821231057,1.67733724,37341.0,37340.0,0.00046314]
[1643821231263,2.48049724,37341.0,37340.0,0.00046314]
[1643821231757,2.48049724,37341.0,37335.0,0.00010379]
[1643821231958,2.12646524,37341.0,37339.0,0.00050337]
[1643821232259,1.81930125,37340.0,37339.0,0.00050337]
[1643821232863,1.81930125,37340.0,37334.0,0.00010379]
[1643821233057,0.05,37339.0,37338.0,0.00050339]
[1643821233260,1.65,37337.0,37332.0,0.00201385]
[1643821233460,0.92757836,37336.0,37332.0,0.00211888]
[1643821233660,0.00425755,37334.0,37332.0,0.00211888]
[1643821233858,2.004032,37333.0,37332.0,0.00211888]
[1643821234058,2.34033792,37333.0,37332.0,0.00201385]
[1643821234261,2.83354801,37333.0,37332.0,0.00201385]
[1643821234459,2.88354801,37333.0,37327.0,0.00010503]
[1643821234709,2.88354801,37333.0,37326.0,0.00017933]
[1643821234710,1.257192,37332.0,37326.0,0.00017933]
[1643821234910,0.354032,37331.0,37326.0,0.00017933]
[1643821235111,1.61836132,37327.0,37326.0,0.00017933]
[1643821235309,2.507192,37327.0,37326.0,0.00017933]
[1643821235612,2.20316,37327.0,37326.0,0.00017933]
[1643821235809,0.85316,37327.0,37326.0,0.00017933]
[1643821236811,1.30741755,37327.0,37326.0,0.00017933]
[1643821237610,1.66144955,37327.0,37326.0,0.00017933]
[1643821237813,1.21144955,37327.0,37326.0,0.00017933]
[1643821238012,0.85741755,37327.0,37326.0,0.00017933]
[1643821239262,0.80741755,37327.0,37326.0,0.00017933]
[1643821239661,0.80761918,37327.0,37326.0,0.00017933]
[1643821240058,0.80761918,37327.0,37326.0,0.23668468]
[1643821240864,0.85761918,37327.0,37326.0,0.23668468]
[1643821241060,0.85761918,37327.0,37326.0,0.00017933]
[1643821241663,1.45761918,37327.0,37326.0,0.00017933]
[1643821241861,2.07930002,37327.0,37326.0,0.00017933]
[1643821242106,1.72428128,37327.0,37326.0,0.00017933]
[1643821242407,1.46930002,37327.0,37326.0,0.00017933]
[1643821244314,1.66923262,37327.0,37326.0,0.00017933]
[1643821244709,1.9649025,37327.0,37326.0,0.00017933]
[1643821244907,1.9649025,37327.0,37307.0,0.8648]
[1643821244908,1.65,37326.0,37312.0,0.134017]
[1643821245109,0.28573257,37325.0,37312.0,0.134017]
[1643821245309,0.245171,37324.0,37319.0,0.001992]
[1643821245509,0.28176385,37321.0,37319.0,0.001992]
[1643821245711,0.66764709,37320.0,37319.0,0.001992]
[1643821246163,0.66764709,37320.0,37311.0,0.01]
[1643821246164,1.56855546,37320.0,37311.0,0.01]
[1643821246367,0.30707663,37312.0,37311.0,0.01]
[1643821246566,0.35707663,37312.0,37311.0,0.01]
[1643821246868,0.35707663,37312.0,37311.0,0.86]
[1643821247066,0.36133418,37312.0,37311.0,0.86]
[1643821247466,0.36133418,37312.0,37311.0,0.01]
[1643821247868,0.35999416,37312.0,37311.0,0.01]
[1643821249712,0.35999416,37312.0,37311.0,0.71]
[1643821250506,0.05291753,37312.0,37311.0,0.71]
[1643821250709,0.05291753,37312.0,37311.0,0.01]
[1643821251111,0.00425755,37312.0,37311.0,0.01]
[1643821251710,0.24518489,37319.0,37312.0,1.2]
[1643821252407,0.24518489,37319.0,37317.0,0.22491782]
[1643821252906,0.29518489,37319.0,37317.0,0.22491782]
[1643821253772,0.29518489,37319.0,37316.0,0.00060331]
[1643821254364,0.29501316,37319.0,37316.0,0.0004982]
[1643821254566,0.29501316,37319.0,37313.0,0.00010511]
[1643821254768,0.29501316,37319.0,37316.0,0.00049821]
[1643821255169,0.254061,37318.0,37316.0,0.00049821]
[1643821255672,0.5,37317.0,37316.0,0.00049821]
[1643821255869,0.55,37317.0,37312.0,0.00010511]
[1643821256169,0.55,37317.0,37315.0,0.00049821]
[1643821256372,0.35608952,37317.0,37315.0,0.00049821]
[1643821256969,0.35608952,37317.0,37313.0,0.00010511]
[1643821257214,0.35608952,37317.0,37314.0,0.00049823]
[1643821257612,0.35108952,37317.0,37314.0,0.00049823]
[1643821257813,0.30608952,37317.0,37314.0,0.00049823]
[1643821258213,0.30608952,37317.0,37313.0,0.00010511]
[1643821258414,0.30608952,37317.0,37314.0,0.00049823]
[1643821259215,9.565e-05,37316.0,37314.0,0.00049823]
[1643821259415,0.00017219,37316.0,37312.0,0.00010511]
[1643821259615,0.00017219,37316.0,37315.0,0.22881398]
[1643821260217,0.00017219,37316.0,37314.0,0.00060334]
[1643821260615,0.00017219,37316.0,37314.0,0.00010511]
[1643821260862,0.00017219,37316.0,37313.0,0.00060335]
[1643821261264,0.00017219,37316.0,37313.0,0.20417907]
[1643821261466,0.00017219,37316.0,37313.0,0.00049824]
[1643821261865,0.35126171,37317.0,37312.0,0.00010511]
[1643821262064,0.35126171,37317.0,37311.0,0.01010511]
[1643821262264,0.35126171,37317.0,37313.0,0.00049825]
[1643821262467,0.35126171,37317.0,37313.0,0.25983687]
[1643821263067,0.35126171,37317.0,37310.0,0.13174607]
[1643821263068,0.55,37316.0,37310.0,0.13174607]
[1643821263265,0.35126171,37317.0,37313.0,0.00014947]
[1643821264269,0.35126171,37317.0,37310.0,0.13174607]
[1643821264465,0.35126171,37317.0,37313.0,0.00049824]
[1643821264466,0.00017234,37315.0,37313.0,0.00049824]
[1643821265516,0.00017234,37315.0,37312.0,0.001]
[1643821265717,0.00017234,37315.0,37312.0,0.00114948]
[1643821266818,0.25085327,37314.0,37312.0,0.00114948]
[1643821267019,0.05,37313.0,37312.0,0.00114948]
[1643821267217,2.0826064,37313.0,37312.0,0.00114948]
[1643821267416,3.2397984,37313.0,37312.0,0.00114948]
[1643821267616,1.307192,37313.0,37312.0,0.00114948]
[1643821267917,1.307192,37313.0,37312.0,0.001]
[1643821268367,2.157192,37313.0,37312.0,0.001]
[1643821268570,2.257192,37313.0,37312.0,0.001]
[1643821269170,2.307192,37313.0,37312.0,0.001]
[1643821269972,2.357192,37313.0,37312.0,0.001]
[1643821270569,2.307192,37313.0,37312.0,0.001]
[1643821271975,2.51312774,37313.0,37312.0,0.001]
[1643821273017,2.56672774,37313.0,37312.0,0.001]
[1643821273215,2.58070964,37313.0,37312.0,0.001]
[1643821273415,3.38070964,37313.0,37312.0,0.001]
[1643821273714,3.28070964,37313.0,37312.0,0.001]
[1643821274316,3.40752964,37313.0,37312.0,0.001]
[1643821274521,3.30752964,37313.0,37312.0,0.001]
[1643821274917,2.60752964,37313.0,37312.0,0.001]
[1643821275118,0.067047,37310.0,37300.0,1.36278104]
[1643821275318,1.157192,37309.0,37300.0,1.36278104]
[1643821275523,1.157192,37309.0,37305.0,0.00196067]
[1643821275524,0.80316,37309.0,37305.0,0.00196067]
[1643821276369,0.80316,37309.0,37302.0,0.33660426]
[1643821276570,0.25925601,37308.0,37302.0,0.30389469]
[1643821276770,0.80316,37309.0,37302.0,0.30389469]
[1643821276771,0.80361604,37309.0,37302.0,0.30389469]
[1643821277183,0.80361604,37309.0,37302.0,0.29389469]
[1643821277572,0.80361604,37309.0,37301.0,0.134056]
[1643821277573,0.80316,37309.0,37301.0,0.134056]
[1643821277770,0.85316,37309.0,37303.0,0.00044292]
[1643821277971,0.00058863,37307.0,37303.0,0.00044292]
[1643821278571,0.00058863,37307.0,37303.0,0.2189256]
[1643821278770,0.10323424,37308.0,37303.0,0.21848268]
[1643821278973,0.85316,37309.0,37303.0,0.2189256]
[1643821279171,0.00058863,37307.0,37303.0,0.2189256]
[1643821280122,0.85316,37309.0,37303.0,0.2689256]
[1643821280321,0.00058863,37307.0,37303.0,0.2689256]
[1643821281119,0.85316,37309.0,37303.0,0.26848268]
[1643821281520,0.00060064,37307.0,37303.0,0.05048296]
[1643821282318,0.00060064,37307.0,37304.0,0.0536]
[1643821282319,0.00067909,37307.0,37304.0,0.0536]
[1643821282522,0.85316,37309.0,37304.0,0.30481037]
[1643821282720,0.00060064,37307.0,37304.0,0.35481037]
[1643821283375,0.00060064,37307.0,37304.0,0.35473192]
[1643821283668,0.85316,37309.0,37304.0,0.35473192]
[1643821283869,0.00060064,37307.0,37304.0,0.35473192]
[1643821284871,0.85316,37309.0,37304.0,0.35473192]
[1643821285077,0.00060061,37307.0,37304.0,0.34973192]
[1643821285970,0.85316,37309.0,37304.0,0.30481037]
[1643821286169,0.85316,37309.0,37304.0,0.35481037]
[1643821286371,0.00060061,37307.0,37304.0,0.30481037]
[1643821286670,0.00060061,37307.0,37304.0,0.35481037]
[1643821287121,0.00060061,37307.0,37304.0,0.42183437]
[1643821287323,0.85316,37309.0,37304.0,0.42183437]
[1643821287521,0.00060061,37307.0,37304.0,0.42183437]
[1643821288421,0.85316,37309.0,37304.0,0.42183437]
[1643821288623,0.85316,37309.0,37304.0,0.35481037]
[1643821288822,0.0005887,37307.0,37304.0,0.35481037]
[1643821289222,0.0005887,37307.0,37304.0,0.30481037]
[1643821289622,0.85316,37309.0,37304.0,0.30481037]
[1643821289824,0.0005887,37307.0,37304.0,0.30481037]
[1643821290424,0.0005887,37307.0,37304.0,0.30491542]
[1643821290628,0.0005887,37307.0,37304.0,0.35491542]
[1643821290867,0.85316,37309.0,37304.0,0.35491542]
[1643821291066,0.000456,37307.0,37304.0,0.35481037]
[1643821291270,0.000456,37307.0,37304.0,0.30481037]
[1643821292067,0.85316,37309.0,37304.0,0.30481037]
[1643821292270,0.00060121,37307.0,37304.0,0.30481037]
[1643821292469,0.00060121,37307.0,37304.0,0.35491542]
[1643821292873,0.00060121,37307.0,37304.0,0.42194042]
[1643821293273,0.85316,37309.0,37304.0,0.42194042]
[1643821293475,0.00060121,37307.0,37304.0,0.42183537]
[1643821294072,0.00060121,37307.0,37304.0,0.42194042]
[1643821294473,0.85316,37309.0,37304.0,0.42194042]
[1643821294711,0.00058098,37307.0,37304.0,0.42183537]
[1643821294911,0.00058098,37307.0,37305.0,0.28268782]
[1643821295112,0.00058098,37307.0,37305.0,0.4033113]
[1643821295710,0.85316,37309.0,37305.0,0.4033113]
[1643821295912,0.00058098,37308.0,37305.0,0.47043835]
[1643821296310,0.00058098,37308.0,37305.0,0.18775053]
[1643821296612,0.00058098,37308.0,37305.0,0.12072705]
[1643821296810,0.85316,37309.0,37305.0,0.12072705]
[1643821297012,1.10733577,37309.0,37305.0,0.12072705]
[1643821297216,1.10733577,37309.0,37305.0,0.00010505]
[1643821297217,0.28718523,37308.0,37305.0,0.00010505]
[1643821297416,0.28718523,37308.0,37303.0,0.00048486]
[1643821297417,0.354032,37307.0,37304.0,0.00010505]
[1643821297615,0.404032,37307.0,37304.0,0.00010505]
[1643821297814,0.05,37307.0,37304.0,0.00010505]
[1643821298019,0.80316,37306.0,37301.0,0.00010505]
[1643821298478,0.26996973,37301.0,37300.0,1.35988609]
[1643821298677,0.31996973,37301.0,37300.0,1.35988609]
[1643821299079,0.31996973,37301.0,37300.0,1.35688609]
[1643821299683,0.31996973,37301.0,37300.0,1.35388609]
[1643821299684,0.05,37301.0,37300.0,1.35388609]
[1643821299983,0.80316,37306.0,37300.0,1.35388609]
[1643821300183,0.80316,37306.0,37301.0,0.0536]
[1643821300382,0.80316,37306.0,37301.0,0.0506]
[1643821300590,0.80316,37306.0,37302.0,0.22327808]
[1643821300780,0.80316,37306.0,37302.0,0.32687808]
[1643821300983,0.80316,37306.0,37302.0,0.39390208]
[1643821301181,0.80316,37306.0,37303.0,0.097]
[1643821301382,0.80316,37306.0,37304.0,0.09704788]
[1643821301583,0.80316,37306.0,37304.0,0.15064788]
[1643821301780,0.80316,37306.0,37304.0,0.14764788]
[1643821302116,0.85316,37306.0,37304.0,0.0536]
[1643821302514,0.85041731,37306.0,37304.0,0.0536]
[1643821302714,0.85041731,37306.0,37304.0,0.0506]
[1643821302914,0.85041731,37306.0,37304.0,0.0476]
[1643821303315,0.85041731,37306.0,37304.0,0.0446]
[1643821303515,0.85041731,37306.0,37304.0,0.0416]
[1643821304113,0.85041731,37306.0,37304.0,0.0386]
[1643821304114,0.00018181,37305.0,37304.0,0.0386]
[1643821304814,0.00018181,37305.0,37304.0,0.0356]
[1643821305516,0.00018181,37305.0,37304.0,0.0296]
[1643821305722,0.24297264,37305.0,37304.0,0.0296]
[1643821305964,0.00018181,37305.0,37304.0,0.0296]
[1643821306564,0.00018181,37305.0,37304.0,0.0266]
[1643821306763,0.00018181,37305.0,37303.0,0.00011801]
[1643821307163,0.00018181,37305.0,37301.0,0.09798293]
[1643821307364,0.00018181,37305.0,37301.0,0.16501483]
[1643821307764,0.00018181,37305.0,37302.0,0.0536]
[1643821308166,0.00018181,37305.0,37302.0,0.0506]
[1643821308565,0.00018181,37305.0,37300.0,1.35388609]
[1643821308866,0.00018181,37305.0,37300.0,1.35088609]
[1643821309067,0.00018181,37305.0,37300.0,1.36977612]
[1643821309367,0.28190092,37303.0,37300.0,1.34788609]
[1643821309617,0.33190092,37303.0,37300.0,1.34788609]
[1643821309818,0.33190092,37303.0,37300.0,1.34488609]
[1643821310021,0.33190092,37303.0,37300.0,1.34188609]
[1643821310218,0.33190092,37303.0,37300.0,1.34237161]
[1643821310419,0.33190092,37303.0,37300.0,1.33937161]
[1643821310721,0.33190092,37303.0,37300.0,1.33637161]
[1643821311220,0.33190092,37303.0,37300.0,1.33588609]
[1643821311518,0.33190092,37303.0,37300.0,1.33337161]
[1643821311721,0.33190092,37303.0,37300.0,1.33037161]
[1643821312118,0.33190092,37303.0,37300.0,1.32737161]
[1643821312518,0.33190092,37303.0,37300.0,1.32388609]
[1643821312919,0.32690092,37303.0,37300.0,1.32437161]
[1643821313118,0.32690092,37303.0,37300.0,1.32137161]
[1643821313359,0.39394492,37303.0,37300.0,1.32137161]
[1643821313563,0.39394492,37303.0,37300.0,1.31847633]
[1643821313761,0.39394492,37303.0,37300.0,1.31799081]
[1643821314162,0.00018227,37302.0,37300.0,1.31799081]
[1643821314365,0.25677333,37302.0,37300.0,1.31788609]
[1643821315361,1.33645361,37301.0,37300.0,1.31788609]
[1643821315562,0.3902535,37301.0,37300.0,1.31788609]
[1643821315762,0.66907967,37301.0,37300.0,1.31788609]
[1643821316363,0.32882617,37301.0,37300.0,1.31586595]
[1643821316766,0.05,37301.0,37300.0,1.31586595]
[1643821317220,0.00018227,37302.0,37300.0,1.31586595]
[1643821317619,0.20222833,37301.0,37300.0,1.31586595]
[1643821317816,0.20222833,37301.0,37300.0,1.31486595]
[1643821318016,0.05,37301.0,37300.0,1.31486595]
[1643821318416,0.00018227,37302.0,37300.0,1.31486595]
[1643821319117,0.067044,37303.0,37300.0,1.31486595]
[1643821319118,0.00018242,37301.0,37300.0,1.31486595]
[1643821320718,0.02800952,37305.0,37301.0,1.2]
[1643821320970,0.02800952,37305.0,37302.0,0.3544034]
[1643821320971,0.01966298,37305.0,37302.0,0.3544034]
[1643821321167,0.01966298,37305.0,37302.0,0.0536]
[1643821321366,0.80316,37306.0,37305.0,0.24021684]
[1643821321766,0.85316,37306.0,37305.0,0.24021684]
[1643821321964,0.920196,37306.0,37303.0,0.09321569]
[1643821322166,0.85316,37306.0,37303.0,0.14692041]
[1643821322568,0.85316,37306.0,37303.0,0.05370472]
[1643821322768,0.85316,37306.0,37303.0,0.04370472]
[1643821323070,0.85316,37306.0,37304.0,0.2620988]
[1643821323771,0.85316,37306.0,37305.0,1.35286395]
[1643821323971,0.85316,37306.0,37305.0,1.67989719]
[1643821324372,0.85316,37306.0,37305.0,2.02341945]
[1643821324612,0.85316,37306.0,37305.0,0.39712226]
[1643821325017,0.81427385,37306.0,37305.0,0.39712226]
[1643821325313,0.81427385,37306.0,37305.0,0.77023464]
[1643821325314,0.80316,37306.0,37305.0,0.77023464]
[1643821325515,0.80316,37306.0,37305.0,0.34498099]
[1643821325715,0.80316,37306.0,37305.0,0.0536]
[1643821326314,0.85316,37306.0,37305.0,0.0536]
[1643821327317,0.85316,37306.0,37305.0,0.33651214]
[1643821327515,0.85316,37306.0,37305.0,0.0436]
[1643821327715,0.85316,37306.0,37305.0,0.6936]
[1643821328365,0.85316,37306.0,37305.0,0.0436]
[1643821328766,0.85316,37306.0,37305.0,0.4936]
[1643821329370,0.85336426,37306.0,37305.0,0.4936]
[1643821330368,0.85336426,37306.0,37305.0,0.49153988]
[1643821330567,0.8134443,37306.0,37305.0,0.49153988]
[1643821330769,0.80336426,37306.0,37305.0,1.18653084]
[1643821331569,0.80336426,37306.0,37305.0,1.04845888]
[1643821332121,0.85336426,37306.0,37305.0,1.04845888]
[1643821332327,0.85336426,37306.0,37305.0,1.14845888]
[1643821332516,0.85336426,37306.0,37305.0,1.19845888]
[1643821332719,0.85336426,37306.0,37305.0,0.59153988]
[1643821332922,0.85336426,37306.0,37305.0,0.14153988]
[1643821333319,0.85336426,37306.0,37305.0,0.43091926]
[1643821333720,0.85336426,37306.0,37305.0,1.33091926]
[1643821334727,0.85336426,37306.0,37305.0,1.58056259]
[1643821335520,0.80336426,37306.0,37305.0,1.58056259]
[1643821336371,0.80336426,37306.0,37305.0,1.29118321]
[1643821336770,0.85336426,37306.0,37305.0,1.29118321]
[1643821337473,0.80336426,37306.0,37305.0,1.29118321]
[1643821337872,0.80336426,37306.0,37305.0,1.24118321]
[1643821338473,0.80336426,37306.0,37305.0,0.14153988]
[1643821338671,0.80336426,37306.0,37305.0,1.13080576]
[1643821338871,0.85336426,37306.0,37305.0,1.13080576]
[1643821339076,0.85336426,37306.0,37305.0,0.14153988]
[1643821339273,0.85336426,37306.0,37305.0,0.04153988]
[1643821339727,0.85336426,37306.0,37305.0,0.69153988]
[1643821339932,0.85336426,37306.0,37305.0,0.04153988]
[1643821340125,0.85336426,37306.0,37305.0,0.14153988]
[1643821341330,0.85336426,37306.0,37305.0,0.04153988]
[1643821342331,0.85336426,37306.0,37301.0,0.00048979]
[1643821342332,1.20739626,37306.0,37301.0,0.00048979]
[1643821342535,0.85336426,37306.0,37301.0,0.00048979]
[1643821342729,0.85336426,37306.0,37300.0,1.31486595]
[1643821343131,0.06704,37304.0,37300.0,1.31486595]
[1643821343370,0.06704,37304.0,37300.0,1.38189895]
[1643821343572,0.06704,37304.0,37300.0,1.30986595]
[1643821343769,0.85336426,37306.0,37300.0,1.30986595]
[1643821344169,0.85336426,37306.0,37302.0,0.07843161]
[1643821344871,0.067034,37304.0,37302.0,0.07843161]
[1643821346872,0.067034,37304.0,37301.0,0.34688722]
[1643821346873,0.32385117,37304.0,37301.0,0.34688722]
[1643821347116,0.85336426,37306.0,37301.0,0.34688722]
[1643821347316,0.85336426,37306.0,37301.0,0.34639834]
[1643821347516,0.85336426,37306.0,37301.0,0.34688723]
[1643821347720,0.85336426,37306.0,37301.0,0.34710221]
[1643821348117,0.85336426,37306.0,37302.0,0.07839179]
[1643821348316,0.85336426,37306.0,37303.0,0.067028]
[1643821348517,0.85336426,37306.0,37303.0,0.06724298]
[1643821349115,0.85336426,37306.0,37303.0,0.06654298]
[1643821349316,0.85316,37306.0,37303.0,0.06654298]
[1643821349717,0.85198344,37306.0,37303.0,0.06654298]
[1643821349917,1.11123885,37306.0,37303.0,0.00021498]
[1643821350117,0.85198344,37306.0,37303.0,0.00021498]
[1643821350329,1.1385877,37306.0,37303.0,0.00021498]
[1643821350619,0.85198344,37306.0,37303.0,0.00021498]
[1643821351070,0.91902544,37306.0,37303.0,0.00021498]
[1643821352072,0.85198344,37306.0,37303.0,0.00021498]
[1643821352471,0.25854641,37305.0,37303.0,0.00021498]
[1643821352975,1.10656149,37306.0,37303.0,0.00021498]
[1643821353173,0.85198344,37306.0,37303.0,0.00021498]
[1643821353672,1.10718319,37306.0,37303.0,0.00021498]
[1643821353874,0.85198344,37306.0,37303.0,0.00021498]
[1643821354072,0.00018156,37305.0,37303.0,0.00021498]
[1643821361269,0.00018156,37305.0,37304.0,0.07623125]
[1643821361470,0.00018156,37305.0,37304.0,0.07644623]
[1643821362132,0.00018156,37305.0,37304.0,0.13004623]
[1643821362337,0.00018156,37305.0,37304.0,1.33004623]
[1643821362637,0.00018156,37305.0,37304.0,0.13004623]
[1643821363339,0.00018156,37305.0,37304.0,0.53004623]
[1643821364334,0.00018156,37305.0,37304.0,1.09223386]
[1643821364335,0.00011554,37305.0,37304.0,1.09223386]
[1643821364535,0.00011554,37305.0,37304.0,0.53004623]
[1643821364734,0.00011554,37305.0,37304.0,0.13004623]
[1643821365335,0.00011554,37305.0,37304.0,0.88004623]
[1643821365534,0.00011554,37305.0,37304.0,0.13004623]
[1643821366375,0.00011554,37305.0,37304.0,0.53004623]
[1643821366576,0.00011554,37305.0,37304.0,0.13004623]
[1643821366978,0.00011554,37305.0,37304.0,0.05381498]
[1643821367379,0.00011554,37305.0,37304.0,0.00021498]
[1643821369378,0.00018156,37305.0,37304.0,0.55021498]
[1643821369621,0.00018156,37305.0,37304.0,0.00021498]
[1643821369825,0.28678582,37305.0,37304.0,0.00021498]
[1643821370023,0.00018156,37305.0,37304.0,0.00021498]
[1643821370323,1.15018156,37305.0,37304.0,0.00021498]
[1643821370523,1.13199689,37305.0,37304.0,0.00021498]
[1643821370725,0.28764027,37305.0,37304.0,0.00021498]
[1643821371326,0.85316,37306.0,37304.0,0.00021498]
[1643821372726,1.12626583,37306.0,37304.0,0.00021498]
[1643821373365,1.37995014,37306.0,37304.0,0.00021498]
[1643821373566,0.60323383,37305.0,37304.0,0.00021498]
[1643821374165,1.12626583,37306.0,37305.0,0.0884982]
[1643821374368,0.80316,37306.0,37305.0,0.08871318]
[1643821375169,0.80316,37306.0,37305.0,0.3212135]
[1643821375968,0.80316,37306.0,37305.0,0.3882325]
[1643821376569,0.80316,37306.0,37305.0,0.5918325]
[1643821377214,0.80316,37306.0,37305.0,2.2418325]
[1643821377418,0.00045314,37307.0,37305.0,2.59865529]
[1643821377620,0.34011536,37321.0,37309.0,0.067001]
[1643821377916,0.17968978,37321.0,37310.0,0.0536]
[1643821378115,0.34011536,37323.0,37310.0,0.05381498]
[1643821378318,0.45406782,37328.0,37321.0,0.22081661]
[1643821378319,0.34011536,37324.0,37321.0,0.22081661]
[1643821378521,0.51980514,37327.0,37322.0,0.0536]
[1643821378718,0.17968978,37326.0,37323.0,0.06699]
[1643821378919,0.39678491,37329.0,37324.0,0.0536]
[1643821378920,0.17968978,37329.0,37324.0,0.0536]
[1643821379119,0.34030952,37329.0,37324.0,0.0536]
[1643821379616,0.34030952,37329.0,37326.0,0.28343514]
[1643821379916,0.40729652,37329.0,37327.0,0.0536]
[1643821380116,1.09527996,37328.0,37323.0,0.00021498]
[1643821380417,1.09527996,37328.0,37324.0,0.0536]
[1643821380974,0.64527996,37328.0,37325.0,0.08861371]
[1643821381169,0.39030952,37328.0,37326.0,0.0536]
[1643821381372,0.066995,37327.0,37326.0,0.0536]
[1643821381772,0.3409054,37328.0,37326.0,0.0536]
[1643821381975,0.20140445,37330.0,37329.0,1.65]
[1643821381976,0.14268619,37330.0,37329.0,1.65]
[1643821382174,0.00018046,37335.0,37329.0,1.65]
[1643821382175,0.34027459,37337.0,37331.0,1.65]
[1643821382374,0.02127298,37336.0,37335.0,2.12]
[1643821382572,0.0021,37339.0,37336.0,0.25748331]
[1643821382772,0.09890002,37340.0,37337.0,0.71760325]
[1643821382974,0.0021,37342.0,37339.0,0.67]
[1643821383172,0.0021,37342.0,37340.0,0.7236]
[1643821383375,0.0021,37342.0,37341.0,1.8036]
[1643821384725,0.0021,37342.0,37341.0,0.1536]
[1643821385120,0.0021,37342.0,37341.0,1.5036]
[1643821386020,0.0021,37342.0,37341.0,1.8036]
[1643821387523,0.00108022,37348.0,37343.0,1.65]
[1643821387722,0.00108022,37348.0,37345.0,0.67]
[1643821387923,0.00108022,37348.0,37346.0,0.52773693]
[1643821388121,0.00108022,37348.0,37347.0,0.99716855]
[1643821388372,0.00108022,37348.0,37347.0,1.33463539]
[1643821389873,0.00108022,37348.0,37347.0,1.00746684]
[1643821390077,0.00108022,37348.0,37347.0,1.30049757]
[1643821391476,0.00108022,37348.0,37347.0,1.00746684]
[1643821391677,0.00108022,37348.0,37347.0,1.30317297]
[1643821392724,0.00108022,37348.0,37347.0,0.95746684]
[1643821392925,0.00108022,37348.0,37347.0,0.85746684]
[1643821393122,0.00108022,37348.0,37347.0,0.0536]
[1643821393526,0.00108022,37348.0,37347.0,0.33933012]
[1643821393726,0.00108022,37348.0,37347.0,0.0536]
[1643821393924,0.00108022,37348.0,37347.0,0.12054369]
[1643821394124,0.00108022,37348.0,37347.0,0.27054369]
[1643821394324,0.00123753,37348.0,37347.0,0.5219021]
[1643821395726,0.00123753,37348.0,37347.0,0.22054369]
[1643821395978,0.00123753,37348.0,37347.0,0.0536]
[1643821396373,0.00123753,37348.0,37344.0,0.133885]
[1643821396774,0.00123753,37348.0,37343.0,0.02164772]
[1643821396974,0.36404418,37348.0,37343.0,0.02164772]
[1643821397174,0.3646122,37348.0,37343.0,0.02164772]